bitfinex/quotes_ETHUSD_20250605
["timestamp","ask_amount","ask_price","bid_price","bid_amount"]
[1749128370325,10.35431803,2632.8,2632.5,1.826]
[1749128370701,6.556,2632.8,2632.5,1.826]
[1749128370902,6.556,2632.8,2632.3,17.5055]
[1749128370903,10.35430797,2632.8,2632.3,17.5055]
[1749128371099,10.35433281,2632.8,2632.4,17.826]
[1749128371313,10.35434828,2632.8,2632.4,16.0]
[1749128371513,10.35430977,2632.8,2632.4,1.826]
[1749128371840,3.79830977,2632.8,2632.4,21.62479801]
[1749128372043,6.556,2632.7,2632.4,21.62479801]
[1749128372908,5.30151135,2633.0,2632.4,21.62479801]
[1749128372909,6.555,2632.6,2632.4,21.62479801]
[1749128373304,6.555,2632.6,2632.4,17.826]
[1749128373509,6.555,2632.6,2632.4,21.62478706]
[1749128373917,6.795,2632.6,2632.4,21.62478706]
[1749128374813,6.795,2632.6,2632.5,3.79867046]
[1749128375013,6.795,2632.6,2632.4,21.62475347]
[1749128375215,6.795,2632.6,2632.4,17.826]
[1749128375547,10.59355617,2632.6,2632.3,1.5055]
[1749128376348,3.79910341,2632.2,2632.1,0.02]
[1749128377049,6.554,2632.2,2632.1,0.02]
[1749128377258,3.80054727,2631.2,2631.1,0.02]
[1749128377715,10.35354727,2631.2,2631.1,0.02]
[1749128378054,3.80054727,2631.2,2631.1,0.02]
[1749128378257,13.98020179,2631.2,2631.1,0.02]
[1749128379350,3.80054727,2631.2,2631.1,0.02]
[1749128379515,10.35554727,2631.2,2631.1,0.02]
[1749128379716,17.22645594,2631.2,2631.1,0.02]
[1749128380816,3.80054727,2631.2,2631.1,0.02]
[1749128381017,10.35454727,2631.2,2631.1,0.02]
[1749128383056,10.35554727,2631.2,2631.1,0.02]
[1749128383356,3.80054727,2631.2,2631.1,0.02]
[1749128383534,10.35554727,2631.2,2631.1,0.02]
[1749128386255,3.80054727,2631.2,2631.1,0.02]
[1749128386442,10.35554727,2631.2,2631.1,0.02]
[1749128387480,12.47734727,2631.2,2631.1,0.02]
[1749128387633,10.67290091,2630.2,2630.0,25.37840669]
[1749128387839,10.35699224,2630.2,2630.0,25.37840669]
[1749128388145,10.35699224,2630.2,2630.0,25.0]
[1749128389889,10.35699224,2630.2,2630.1,16.02]
[1749128390064,6.555,2630.2,2630.1,16.02]
[1749128390261,10.35699224,2630.2,2630.1,16.02]
[1749128390773,6.556,2630.2,2630.1,16.02]
[1749128391383,1.5718,2630.5,2630.1,16.02]
[1749128391583,3.80191484,2630.3,2630.1,16.02]
[1749128391888,3.80194817,2630.3,2630.1,16.02]
[1749128392599,3.80199224,2630.2,2630.1,16.02]
[1749128392766,3.80199224,2630.2,2630.1,17.841]
[1749128393346,6.555,2630.2,2630.1,17.841]
[1749128393882,10.35699224,2630.2,2630.1,17.841]
[1749128394088,10.35699224,2630.2,2630.1,16.02]
[1749128395251,3.80199224,2630.2,2630.1,16.02]
[1749128395451,10.35799224,2630.2,2630.1,16.02]
[1749128395651,3.80199224,2630.2,2630.1,16.02]
[1749128395848,10.35799224,2630.2,2630.1,16.02]
[1749128396271,3.80199224,2630.2,2630.1,16.02]
[1749128396471,10.35699224,2630.2,2630.1,16.02]
[1749128396709,4.35129192,2630.7,2630.1,17.4931]
[1749128396900,3.80186096,2630.3,2630.1,17.4931]
[1749128397207,6.556,2630.2,2630.1,17.4931]
[1749128397513,3.80199224,2630.2,2630.1,17.4931]
[1749128397813,6.556,2630.2,2630.1,17.841]
[1749128398677,10.35799224,2630.2,2630.1,16.02]
[1749128398878,10.35799224,2630.2,2630.1,17.841]
[1749128399208,10.35699224,2630.2,2630.1,17.841]
[1749128399801,10.35699224,2630.2,2630.1,16.02]
[1749128400015,10.35699224,2630.2,2630.1,17.841]
[1749128400575,3.80126962,2630.7,2630.1,17.841]
[1749128400912,3.80134715,2630.7,2630.2,16.0]
[1749128401107,1.5688,2631.2,2630.5,16.0]
[1749128401418,3.6325432,2630.9,2630.3,1.4877]
[1749128401586,3.80135804,2630.7,2630.3,1.4877]
[1749128401786,3.6325432,2630.9,2630.4,16.0]
[1749128401787,6.555,2630.6,2630.4,16.0]
[1749128402121,0.24,2630.8,2630.4,10.09849134]
[1749128402302,0.24,2630.8,2630.7,3.80126962]
[1749128402493,6.795,2630.8,2630.7,7.06876962]
[1749128403290,0.24,2631.1,2631.0,16.0]
[1749128403495,6.555,2631.1,2630.9,19.80089484]
[1749128403691,6.555,2631.1,2630.8,19.80105938]
[1749128403892,10.35583618,2631.0,2630.9,1.817]
[1749128404423,6.555,2631.0,2630.9,1.817]
[1749128404978,0.24,2631.3,2630.9,1.817]
[1749128405182,6.554,2631.2,2630.9,1.817]
[1749128405594,0.24,2631.3,2631.0,16.0]
[1749128405799,0.24,2631.3,2630.9,21.61790844]
[1749128406085,6.554,2631.2,2631.1,16.0]
[1749128406291,0.24,2631.3,2631.2,3.80054727]
[1749128406481,0.24,2631.3,2631.2,1.4477]
[1749128406482,6.794,2631.3,2631.2,1.4477]
[1749128406686,6.794,2631.3,2631.2,5.24824727]
[1749128406886,6.794,2631.3,2631.2,1.4477]
[1749128407082,6.794,2631.3,2631.2,1.817]
[1749128407591,0.24,2631.3,2631.2,21.61754727]
[1749128407913,6.793,2631.3,2631.2,21.61754727]
[1749128408223,6.793,2631.3,2631.2,16.0]
[1749128408397,10.59340284,2631.3,2631.2,17.817]
[1749128408599,10.59340284,2631.3,2631.2,16.0]
[1749128408810,10.59340284,2631.3,2631.2,17.817]
[1749128409010,6.793,2631.3,2631.2,17.817]
[1749128409220,6.792,2631.3,2631.2,17.817]
[1749128409520,0.24,2631.3,2631.2,17.817]
[1749128409709,6.792,2631.3,2631.2,21.61754727]
[1749128410109,0.24,2631.3,2631.2,21.61754727]
[1749128410628,0.24,2631.3,2631.2,16.0]
[1749128410827,7.10826259,2631.3,2630.5,1.4154]
[1749128410996,3.80141412,2630.6,2630.5,1.817]
[1749128411196,6.552,2630.6,2630.5,1.817]
[1749128411401,6.552,2630.6,2630.5,17.817]
[1749128411714,6.552,2630.6,2630.5,1.817]
[1749128411917,0.24,2630.9,2630.8,3.80112513]
[1749128412120,0.24,2630.9,2630.5,2.1455]
[1749128412121,6.791,2630.9,2630.6,3.80129991]
[1749128413137,6.791,2630.9,2630.7,3.80119373]
[1749128413296,6.551,2630.8,2630.6,3.80129985]
[1749128413497,6.551,2630.8,2630.7,3.80126962]
[1749128414047,0.24,2630.9,2630.7,3.80126962]
[1749128414339,6.551,2630.8,2630.7,3.80126962]
[1749128414537,0.24,2630.9,2630.8,3.80112513]
[1749128415391,0.24,2631.3,2630.9,19.80098065]
[1749128415723,6.551,2631.2,2630.9,19.80096752]
[1749128416334,6.791,2631.3,2631.1,3.80069172]
[1749128416528,10.59044645,2631.3,2631.2,1.817]
[1749128416694,10.59040284,2631.3,2631.2,1.817]
[1749128417228,6.79,2631.3,2631.2,1.817]
[1749128418810,0.24,2631.3,2631.2,1.817]
[1749128419016,6.79,2631.3,2631.2,1.817]
[1749128419327,6.79,2631.3,2630.9,3.8009082]
[1749128419516,6.79,2631.3,2631.2,1.817]
[1749128420241,3.80083618,2631.0,2630.9,1.817]
[1749128420918,3.80103051,2630.9,2630.5,9.6363]
[1749128421121,6.549,2630.9,2630.6,1.817]
[1749128421420,6.549,2630.9,2630.6,5.61833286]
[1749128421615,6.549,2630.9,2630.8,13.80112513]
[1749128422127,6.549,2630.9,2630.8,3.80112513]
[1749128422641,0.24,2631.3,2630.8,0.94194853]
[1749128422840,6.549,2631.2,2630.9,15.34058065]
[1749128423145,6.549,2631.2,2630.9,5.3405659]
[1749128423506,6.549,2631.2,2631.0,3.80083088]
[1749128423847,6.549,2631.2,2631.1,3.80068781]
[1749128423848,6.789,2631.2,2631.1,3.80068781]
[1749128424633,6.789,2631.2,2630.7,19.80122079]
[1749128424829,6.789,2631.2,2631.1,3.80069172]
[1749128425134,0.24,2631.2,2631.1,12.61406072]
[1749128425444,0.24,2631.2,2631.1,12.11006072]
[1749128425647,0.24,2631.2,2631.1,7.67851172]
[1749128426029,0.24,2631.6,2631.2,3.80047337]
[1749128426207,0.24,2631.6,2631.3,5.61734311]
[1749128426414,6.788,2631.6,2631.5,3.800114]
[1749128426747,0.24,2631.6,2631.4,3.80018373]
[1749128427043,0.24,2631.6,2631.3,1.817]
[1749128427467,0.24,2631.6,2631.3,5.61729414]
[1749128427748,0.24,2631.6,2631.4,3.80020879]
[1749128427946,0.24,2631.6,2631.3,1.5077]
[1749128428144,0.24,2631.6,2631.4,5.6171184]
[1749128428346,0.24,2631.6,2631.4,1.817]
[1749128429034,0.24,2631.6,2631.3,10.0]
[1749128429235,5.32235394,2631.5,2631.3,1.816]
[1749128429450,6.547,2631.4,2631.3,1.816]
[1749128430132,6.787,2631.4,2631.3,1.816]
[1749128430308,4.04025841,2631.4,2631.3,1.816]
[1749128430512,6.786,2631.4,2631.3,1.816]
[1749128432517,0.24,2631.4,2631.3,26.48044584]
[1749128432825,0.24,2631.4,2631.3,10.14209966]
[1749128433031,0.24,2631.4,2631.3,7.11400284]
[1749128433524,0.24,2631.4,2631.3,26.38524884]
[1749128433783,0.24,2631.4,2631.3,17.31158084]
[1749128434680,0.24,2631.4,2631.3,33.31158084]
[1749128435268,0.24,2632.0,2631.8,3.79966604]
[1749128435442,0.24,2632.0,2631.3,23.11400284]
[1749128435443,6.545,2632.0,2631.9,1.812]
[1749128437444,4.03931532,2632.1,2631.9,1.812]
[1749128437664,6.544,2632.0,2631.9,1.812]
[1749128438184,3.79970269,2631.8,2631.3,1.4976]
[1749128438343,3.79970269,2631.8,2631.4,1.812]
[1749128438344,5.227114,2631.8,2631.4,1.812]
[1749128438740,1.4273,2631.8,2631.4,5.61222985]
[1749128439574,5.2269851,2631.8,2631.4,1.812]
[1749128440081,3.79991616,2631.7,2631.4,1.812]
[1749128440747,6.544,2631.6,2631.2,3.80046535]
[1749128441048,6.544,2631.6,2631.3,1.812]
[1749128441689,7.9703,2631.9,2631.4,5.61218249]
[1749128441851,10.3426952,2631.8,2631.4,5.61218249]
[1749128442051,6.543,2631.8,2631.4,5.61218249]
[1749128442787,6.543,2631.8,2631.5,3.8000892]
[1749128443087,6.543,2631.8,2631.5,3.80000378]
[1749128443747,6.543,2631.8,2631.6,1.812]
[1749128444186,6.543,2631.8,2631.6,5.61195921]
[1749128444387,6.542,2631.8,2631.6,5.61195921]
[1749128444689,6.542,2631.8,2631.6,1.812]
[1749128445272,3.79949841,2632.0,2631.6,1.812]
[1749128445583,6.542,2632.1,2631.6,1.812]
[1749128445778,3.79939209,2632.0,2631.6,1.812]
[1749128445978,6.542,2632.1,2631.7,1.812]
[1749128445979,3.79968082,2631.8,2631.7,1.812]
[1749128446179,3.79979616,2631.8,2631.4,1.5034]
[1749128446366,3.79988624,2631.7,2631.3,10.0]
[1749128446568,1.4261,2631.9,2631.5,3.80008322]
[1749128446772,6.542,2631.8,2631.5,3.80008322]
[1749128448257,6.542,2631.8,2631.6,3.79990224]
[1749128448463,6.542,2631.8,2631.5,3.80002751]
[1749128448975,6.542,2631.8,2631.3,1.5427]
[1749128449177,10.3417362,2631.8,2631.4,5.61225508]
[1749128449696,6.541,2631.8,2631.4,5.61218704]
[1749128450098,3.79944768,2632.0,2631.5,5.6120127]
[1749128450308,10.34054542,2631.9,2631.5,5.6120127]
[1749128450511,6.541,2631.9,2631.6,3.79993375]
[1749128450812,6.541,2631.9,2631.5,5.61204752]
[1749128451096,0.24,2631.8,2631.5,5.61204752]
[1749128451394,6.78,2631.8,2631.5,5.61204752]
[1749128453767,6.78,2631.8,2631.6,3.79996064]
[1749128454076,6.78,2631.8,2631.7,3.7998252]
[1749128454499,6.78,2631.8,2631.5,21.61207005]
[1749128454500,6.78,2631.8,2631.6,3.79988826]
[1749128454996,6.78,2631.8,2631.6,3.79988787]
[1749128455298,6.78,2631.8,2631.5,21.612029]
[1749128455500,10.57972824,2631.8,2631.5,17.812]
[1749128455798,6.78,2631.8,2631.6,3.79996192]
[1749128456176,6.78,2631.8,2631.5,16.0]
[1749128456379,6.78,2631.8,2631.6,17.812]
[1749128456705,6.78,2631.8,2631.6,1.812]
[1749128457005,6.78,2631.8,2631.5,16.0]
[1749128457006,1.5372,2631.7,2631.5,1.812]
[1749128457305,1.5372,2631.7,2631.6,3.7999696]
[1749128457490,1.5372,2631.7,2631.6,16.0]
[1749128459109,1.5372,2631.7,2631.1,1.4777]
[1749128459313,3.80004303,2631.6,2631.4,1.812]
[1749128459471,3.80004303,2631.6,2631.0,19.80076475]
[1749128459472,3.8000436,2631.6,2631.0,19.80076475]
[1749128459672,3.80014217,2631.5,2631.1,1.812]
[1749128459904,6.538,2631.4,2631.1,1.812]
[1749128460083,6.538,2631.4,2631.1,3.8006834]
[1749128460287,6.538,2631.4,2631.3,16.0]
[1749128461185,6.538,2631.4,2631.2,16.0]
[1749128461381,6.538,2631.4,2631.3,1.812]
[1749128461822,1.5372,2631.7,2631.3,5.61240284]
[1749128462111,6.537,2631.6,2631.5,3.800114]
[1749128462308,6.537,2631.6,2631.5,19.800114]
[1749128462795,6.777,2631.6,2631.5,16.0]
[1749128462997,6.777,2631.6,2631.4,3.80023083]
[1749128463173,6.777,2631.6,2631.4,3.80024902]
[1749128463508,6.777,2631.6,2631.5,1.812]
[1749128463691,3.80014293,2631.5,2631.4,1.807]
[1749128463891,10.5770327,2631.6,2631.4,1.807]
[1749128464067,10.5770327,2631.6,2631.3,1.807]
[1749128464519,10.5770327,2631.6,2631.2,1.807]
[1749128464520,6.777,2631.6,2631.2,1.807]
[1749128464871,1.4161,2631.4,2630.7,1.4467]
[1749128465096,4.04047924,2631.3,2630.8,5.60802682]
[1749128465293,6.537,2631.2,2630.8,5.6080332]
[1749128465495,6.537,2631.2,2630.8,1.807]
[1749128465673,6.537,2631.2,2630.9,3.80095966]
[1749128465873,6.537,2631.2,2630.8,5.60806852]
[1749128466075,6.537,2631.2,2630.9,3.800845]
[1749128466506,6.537,2631.2,2631.0,3.80082315]
[1749128466807,6.537,2631.2,2631.0,3.80082774]
[1749128467374,6.537,2631.2,2630.9,3.8009765]
[1749128467708,0.24,2631.3,2631.2,21.23364727]
[1749128468490,0.24,2631.3,2631.2,21.60854727]
[1749128468688,0.24,2631.6,2631.4,3.80020651]
[1749128468910,0.24,2631.6,2631.5,3.800114]
[1749128469420,0.24,2631.6,2631.5,17.808]
[1749128470412,6.775,2631.6,2631.5,17.808]
[1749128470615,0.24,2631.6,2631.5,21.608114]
[1749128471325,0.24,2631.6,2631.5,23.945552]
[1749128473898,0.24,2631.6,2631.5,23.679721]
[1749128474539,6.775,2631.8,2631.7,16.0]
[1749128475260,6.775,2631.8,2631.6,3.79992478]
[1749128475261,0.55,2631.4,2630.1,0.02]
[1749128475393,5.34390053,2631.1,2630.1,10.02]
[1749128475739,3.8010081,2630.9,2630.5,16.0]
[1749128475938,6.533,2630.8,2630.5,3.80153217]
[1749128476099,6.533,2630.8,2630.6,16.0]
[1749128476299,6.533,2630.8,2630.7,1.807]
[1749128476700,6.533,2630.9,2630.7,1.807]
[1749128477202,5.34396591,2631.1,2630.7,1.807]
[1749128477402,6.533,2631.0,2630.7,1.807]
[1749128477598,10.33392899,2631.0,2630.7,1.807]
[1749128478033,6.533,2631.0,2630.7,1.807]
[1749128478219,10.33385143,2631.0,2630.7,1.807]
[1749128478857,6.533,2631.0,2630.7,1.807]
[1749128479241,5.21120051,2631.3,2630.7,5.60826542]
[1749128479443,6.533,2631.2,2630.8,17.5329]
[1749128479643,5.34524887,2631.5,2631.1,16.0]
[1749128479802,6.533,2631.4,2631.1,19.80064445]
[1749128480007,6.533,2631.3,2631.1,19.80064445]
[1749128480203,3.79998777,2631.6,2631.1,19.80064445]
[1749128480439,6.533,2631.3,2631.1,19.80064445]
[1749128480642,6.533,2631.3,2631.1,16.0]
[1749128480844,6.533,2631.3,2631.2,3.80054727]
[1749128481149,6.533,2631.3,2631.2,19.80054727]
[1749128481341,3.79971504,2631.8,2631.3,19.80029647]
[1749128481540,6.533,2631.7,2631.4,1.808]
[1749128482137,10.33284046,2631.7,2631.4,1.808]
[1749128482504,6.533,2631.7,2631.4,1.808]
[1749128482742,6.533,2631.6,2631.4,1.808]
[1749128484077,6.533,2631.6,2631.3,17.4841]
[1749128484078,6.533,2631.6,2631.3,1.4841]
[1749128484284,6.533,2631.6,2631.5,1.808]
[1749128485357,5.34468595,2631.9,2631.5,1.808]
[1749128485358,5.34469058,2631.9,2631.5,1.808]
[1749128485682,10.33170258,2631.8,2631.5,1.808]
[1749128485839,6.532,2631.8,2631.5,1.808]
[1749128486242,6.532,2631.8,2631.5,5.60810773]
[1749128486443,5.34471722,2631.9,2631.5,1.808]
[1749128486770,6.531,2631.8,2631.5,1.808]
[1749128486965,4.03945513,2632.0,2631.5,5.60809767]
[1749128487166,6.531,2631.9,2631.5,5.60809767]
[1749128487544,6.531,2631.9,2631.5,1.808]
[1749128487750,3.80039758,2631.4,2631.1,1.808]
[1749128487964,6.531,2631.3,2631.1,17.808]
[1749128488706,14.93768013,2631.3,2630.2,1.493]
[1749128488850,3.80104469,2630.9,2630.4,13.80162926]
[1749128489049,6.531,2630.9,2630.5,19.80155488]
[1749128489589,10.33205833,2630.9,2630.6,1.808]
[1749128489757,6.531,2630.9,2630.6,1.808]
[1749128489951,6.531,2630.9,2630.7,1.808]
[1749128490609,6.531,2630.9,2630.5,19.80146382]
[1749128490779,6.531,2630.9,2630.6,1.808]
[1749128490986,6.531,2630.9,2630.6,5.60940542]
[1749128491288,6.531,2630.9,2630.6,1.808]
[1749128491498,3.80119762,2630.8,2630.4,1.808]
[1749128491919,3.80119762,2630.8,2630.4,11.808]
[1749128492115,11.78585817,2630.9,2630.4,15.60966652]
[1749128492309,4.04118822,2630.8,2630.4,11.808]
[1749128493225,0.24,2630.7,2630.2,1.808]
[1749128493408,3.80156755,2630.5,2630.2,1.808]
[1749128493889,3.80173386,2630.4,2630.2,1.808]
[1749128494230,10.33184769,2630.3,2630.1,0.02]
[1749128494436,6.53,2630.3,2630.1,0.02]
[1749128495222,10.33191116,2630.3,2630.1,0.02]
[1749128496683,6.53,2630.2,2630.1,0.02]
[1749128498054,1.4106,2630.4,2630.1,0.02]
[1749128498361,6.53,2630.2,2630.1,16.02]
[1749128499606,6.53,2630.2,2630.1,19.8221368]
[1749128499810,0.24,2630.3,2630.2,19.80199224]
[1749128500026,0.24,2631.0,2630.3,16.0]
[1749128500260,6.53,2630.9,2630.7,16.0]
[1749128500436,6.77,2630.9,2630.5,19.80144014]
[1749128500747,4.04105196,2630.9,2630.5,16.0]
[1749128500906,6.529,2630.8,2630.4,21.60462948]
[1749128501110,6.529,2630.8,2630.5,3.8015323]
[1749128501346,6.529,2630.8,2630.4,5.60462948]
[1749128501347,1.4443,2630.7,2630.1,0.02]
[1749128501714,6.529,2630.6,2630.4,3.80162467]
[1749128501918,6.529,2630.6,2630.3,1.4613]
[1749128502258,6.529,2630.6,2630.3,7.06607984]
[1749128502474,3.80199224,2630.2,2630.1,0.02]
[1749128502750,6.529,2630.2,2630.1,0.02]
[1749128503632,6.529,2630.2,2630.1,0.68666667]
[1749128504532,10.33099224,2630.2,2630.1,0.68666667]
[1749128505351,6.529,2630.2,2630.1,0.68666667]
[1749128505564,11.76379224,2630.2,2630.1,0.68666667]
[1749128506477,0.24,2630.2,2630.1,0.68666667]
[1749128506614,10.56999224,2630.2,2630.1,0.68666667]
[1749128506816,6.768,2630.2,2630.1,0.68666667]
[1749128507046,4.04199224,2630.2,2630.1,0.68666667]
[1749128507262,6.768,2630.2,2630.1,0.68666667]
[1749128507479,0.24,2630.2,2630.1,0.68666667]
[1749128507768,1.6677,2630.4,2630.1,0.68666667]
[1749128507956,6.528,2630.3,2630.1,0.68666667]
[1749128508120,6.528,2630.3,2630.1,4.48878722]
[1749128508320,6.528,2630.3,2630.1,0.68666667]
[1749128509037,6.528,2630.3,2630.1,4.48879862]
[1749128509244,0.24,2630.4,2630.3,3.80184769]
[1749128509442,6.768,2630.4,2630.3,5.60484769]
[1749128510240,6.768,2630.4,2630.3,1.803]
[1749128511474,0.24,2630.4,2630.3,5.60484769]
[1749128511674,6.767,2630.4,2630.3,1.803]
[1749128511855,6.767,2630.4,2630.3,5.60484769]
[1749128512059,6.767,2630.4,2630.3,1.803]
[1749128512252,0.24,2630.4,2630.3,5.60484769]
[1749128512482,6.767,2630.4,2630.3,5.60484769]
[1749128514108,6.767,2630.4,2630.3,1.803]
[1749128515749,8.288,2630.4,2630.1,16.68666667]
[1749128515949,6.767,2630.4,2630.1,20.48872884]
[1749128516147,6.767,2630.4,2630.3,16.0]
[1749128516880,0.24,2630.4,2630.3,19.80184769]
[1749128517042,6.766,2630.4,2630.3,16.0]
[1749128517248,6.766,2630.4,2630.3,19.80184769]
[1749128517947,6.526,2630.4,2630.3,16.0]
[1749128518348,6.526,2630.4,2630.3,19.80184769]
[1749128519075,6.526,2630.4,2630.3,16.0]
[1749128519662,6.526,2630.4,2630.3,19.80184769]
[1749128520484,3.80109013,2630.9,2630.4,5.36644423]
[1749128520655,6.525,2630.8,2630.4,5.36644423]
[1749128520866,6.525,2630.8,2630.3,16.0]
[1749128521056,5.27903267,2630.7,2630.3,16.0]
[1749128521766,5.27903267,2630.7,2630.3,3.80184696]
[1749128521949,5.27903267,2630.7,2630.2,21.35081101]
[1749128522662,5.27903267,2630.7,2630.3,3.80183144]
[1749128523061,1.4777,2630.7,2630.2,21.35087044]
[1749128523262,1.4777,2630.7,2630.4,3.8016397]
[1749128523461,1.4777,2630.7,2630.3,3.80176219]
[1749128523662,6.524,2630.6,2630.3,3.80176219]
[1749128524756,6.524,2630.6,2630.4,13.80165581]
[1749128524957,6.524,2630.6,2630.3,3.80174854]
[1749128525169,6.524,2630.6,2630.4,10.0]
[1749128526189,6.524,2630.6,2630.4,4.0]
[1749128526384,6.524,2630.6,2630.4,10.0]
[1749128526588,6.524,2630.6,2630.2,21.35085502]
[1749128526788,6.524,2630.6,2630.4,10.0]
[1749128527088,6.524,2630.6,2630.3,3.80177154]
[1749128527284,3.80163677,2630.5,2630.3,1.798]
[1749128527490,6.524,2630.6,2630.3,1.798]
[1749128527651,6.524,2630.6,2630.3,5.59983565]
[1749128527850,0.24,2630.5,2630.3,5.59971375]
[1749128528389,0.24,2630.5,2630.3,1.798]
[1749128528692,0.24,2630.7,2630.6,21.34651412]
[1749128532512,0.24,2630.7,2630.6,16.0]
[1749128532660,0.24,2630.7,2630.6,17.798]
[1749128533002,0.24,2630.7,2630.6,21.59941412]
[1749128533854,0.24,2630.7,2630.6,23.11231412]
[1749128535105,0.24,2630.7,2630.6,48.54977225]
[1749128535404,1.4362,2631.4,2631.3,3.80040284]
[1749128535405,0.24,2631.4,2631.3,3.80040284]
[1749128535612,6.52,2631.5,2631.4,3.80020839]
[1749128535766,0.24,2631.7,2631.6,19.7999696]
[1749128536303,0.24,2631.7,2631.6,16.0]
[1749128536505,6.759,2631.7,2631.6,16.0]
[1749128537099,6.759,2631.7,2631.6,19.7999696]
[1749128537287,0.24,2631.7,2631.6,19.7999696]
[1749128537497,6.759,2631.7,2631.6,19.7999696]
[1749128537701,0.24,2631.7,2631.6,19.7999696]
[1749128537867,6.758,2631.7,2631.6,19.7999696]
[1749128538269,6.758,2631.7,2631.6,16.0]
[1749128540604,6.758,2631.7,2630.8,3.80110269]
[1749128540605,3.80021127,2631.5,2630.8,5.59906228]
[1749128540808,6.517,2631.4,2630.9,3.80098065]
[1749128540987,6.517,2631.4,2631.0,16.0]
[1749128541187,6.517,2631.4,2631.0,19.80083331]
[1749128541395,6.517,2631.4,2631.0,16.0]
[1749128541633,10.31727067,2631.4,2631.0,16.0]
[1749128541832,6.517,2631.4,2631.0,16.0]
[1749128542137,6.517,2631.4,2631.1,16.0]
[1749128542881,6.517,2631.4,2631.1,3.80068227]
[1749128543103,6.517,2631.4,2631.0,19.80076116]
[1749128543327,6.517,2631.4,2631.0,19.80077411]
[1749128543617,6.517,2631.4,2631.1,3.80066624]
[1749128543840,8.0261,2631.6,2631.0,27.5138]
[1749128543979,8.0261,2631.6,2631.0,17.5138]
[1749128544180,3.800114,2631.5,2631.1,16.0]
[1749128544384,11.82611893,2631.6,2631.1,19.80063869]
[1749128544607,11.82613259,2631.6,2631.1,19.80063869]
[1749128545114,8.0261,2631.6,2631.2,3.80052138]
[1749128545523,0.24,2631.5,2631.3,3.80040028]
[1749128545719,0.24,2631.5,2631.2,3.80054442]
[1749128545720,6.755,2631.5,2631.4,3.80025841]
[1749128546024,0.24,2631.5,2631.4,3.80025841]
[1749128546380,6.755,2631.5,2631.4,3.80025841]
[1749128547012,0.24,2631.5,2631.4,3.80025841]
[1749128547310,6.755,2631.5,2631.4,3.80025841]
[1749128550553,0.24,2631.5,2631.4,19.80025841]
[1749128550744,6.753,2631.5,2631.4,19.80025841]
[1749128553568,6.753,2631.5,2631.1,3.3042]
[1749128553757,3.80034307,2631.4,2631.0,16.0]
[1749128553936,3.80063794,2631.2,2630.8,16.0]
[1749128554266,8.3014,2631.1,2631.0,16.0]
[1749128554435,0.24,2631.1,2631.0,16.0]
[1749128554634,6.752,2631.1,2631.0,16.0]
[1749128555729,6.752,2631.1,2631.0,19.80083618]
[1749128556453,6.752,2631.1,2631.0,16.0]
[1749128557187,6.752,2631.1,2631.0,3.80083618]
[1749128560276,6.752,2631.1,2631.0,19.80083618]
[1749128560635,6.752,2631.1,2631.0,16.0]
[1749128561341,6.752,2631.1,2630.9,16.0]
[1749128561539,6.752,2631.1,2630.8,16.0]
[1749128562166,6.51,2631.0,2630.8,19.80103958]
[1749128562367,6.51,2631.0,2630.9,3.80098065]
[1749128563439,0.24,2631.1,2631.0,3.80083618]
[1749128563660,6.75,2631.1,2631.0,3.80083618]
[1749128565241,0.24,2631.4,2631.3,3.80040284]
[1749128565442,6.749,2631.4,2631.2,3.80049346]
[1749128565947,6.749,2631.4,2631.3,3.80040284]
[1749128566140,0.24,2631.4,2631.3,3.80040284]
[1749128566477,6.749,2631.4,2631.3,3.80040284]
[1749128566978,0.24,2631.4,2631.3,3.80040284]
[1749128567161,6.749,2631.4,2631.3,3.80040284]
[1749128568778,0.24,2631.4,2631.3,3.80040284]
[1749128568978,6.748,2631.4,2631.3,3.80040284]
[1749128569861,1.7281,2631.9,2631.3,1.442]
[1749128570061,10.30769622,2631.8,2631.4,13.80022197]
[1749128570370,3.63078671,2631.5,2631.0,1.792]
[1749128570696,10.30832644,2631.4,2631.0,1.792]
[1749128571063,1.4189,2631.3,2630.8,17.792]
[1749128571269,5.2194397,2631.3,2630.8,19.80104772]
[1749128572053,3.80055488,2631.2,2630.7,19.80115306]
[1749128572254,4.04071894,2631.1,2630.6,0.37402194]
[1749128572484,6.507,2631.0,2630.6,21.5932936]
[1749128572860,6.507,2631.0,2630.6,21.59334092]
[1749128573255,4.04071754,2631.1,2630.6,21.59334092]
[1749128573256,0.24,2631.1,2631.0,3.80083618]
[1749128573456,6.746,2631.1,2631.0,3.80083618]
[1749128573789,0.24,2631.1,2631.0,3.80083618]
[1749128573953,6.746,2631.1,2631.0,3.80083618]
[1749128578178,0.24,2631.1,2631.0,3.80083618]
[1749128578379,6.745,2631.1,2631.0,5.32763618]
[1749128578570,0.24,2631.1,2631.0,5.32763618]
[1749128578767,6.745,2631.1,2631.0,9.07689918]
[1749128579587,0.24,2631.1,2631.0,9.07689918]
[1749128580094,0.24,2631.1,2631.0,5.32763618]